Cogmind - Beta 14 @@@ ROGUE MODE // 2024.12.12 @ 08:18:23 Player: Dosh Result: Destroyed by Y-45 Defender with Beam Rifle Performance ------------- Evolutions (0) 0 Regions Visited (3) 600 Robots Destroyed (31) 155 Value Destroyed (790) 790 Prototype IDs (5) 100 Alien Tech Used (0) 0 Bonus (4) 4 TOTAL SCORE: 1649 Bonus ------- High Alert Combat Kills 4 Cogmind --------- Core Integrity 0/250 Matter 217/300 Energy 280/280 System Corruption 0% Temperature Warm (159) Movement Rolling (120) Ox1 Location -8/Recycling Parts ------- > --- POWER (1) -------- Heavy Ion Engine > --- PROPULSION (2) --- Subdweller Monowheel > --- UTILITY (2) ------ Large Storage Unit Core Shielding > --- WEAPON (2) ------- Beam Cannon Light Cannon > --- INVENTORY (15) --- Heavy Ion Engine Subdweller Monowheel Improved Heat Sink Huge Storage Unit High-capacity Matter Pod (200) Structural Scanner Subdweller Optics Light Armor Plating Makeshift Hacking Suite Subdweller Beam Cannon Grenade Launcher Subdweller Shrapnel Launcher Makeshift Hammer Ripper Piercing Trap Peak State ------------ > --- POWER ------------ Heavy Ion Engine > --- PROPULSION ------- Subdweller Monowheel > --- UTILITY ---------- Large Storage Unit Core Shielding > --- WEAPON ----------- Makeshift Hammer Ripper > --- INVENTORY -------- Heavy Ion Engine Improved Heat Sink Huge Storage Unit High-capacity Matter Pod Structural Scanner Subdweller Optics Light Armor Plating Makeshift Hacking Suite Beam Cannon Subdweller Beam Cannon Grenade Launcher Subdweller Shrapnel Launcher Piercing Trap [Rating: 17] Favorites ----------- Power Heavy Ion Engine Engine Heavy Ion Engine Propulsion Light Treads Treads Light Treads Wheel Subdweller Monowheel Utility Large Storage Unit Device Improved Heat Sink Storage Large Storage Unit Protection Core Shielding Weapon Light Assault Rifle Energy Cannon Subdweller Beam Cannon Ballistic Gun Light Assault Rifle Ballistic Cannon Battle Cannon Launcher Grenade Launcher Impact Weapon Makeshift Hammer Slashing Weapon Ripper Build | -11 -10 -10 -8 ------- Run | Yrd Mat Sub Rec Slots Evolved . | . . . . Power . | . . . . Propulsion . | . . . . Utility . | . . . . Weapon . | . . . . Parts Attached 33 | 6 7 19 1 Power 2 | 1 1 . . Engine 2 | 1 1 . . Core . | . . . . Reactor . | . . . . Propulsion 8 | 2 2 4 . Treads 6 | 2 2 2 . Leg . | . . . . Wheel 2 | . . 2 . Hover . | . . . . Flight . | . . . . Utility 8 | 1 3 4 . Device 3 | . 1 2 . Storage 2 | 1 1 . . Processor . | . . . . Hackware . | . . . . Protection 3 | . 1 2 . Artifact . | . . . . Weapon 15 | 2 1 11 1 Energy Gun . | . . . . Energy Cannon 4 | . . 4 . Ballistic Gun 2 | 2 . . . Ballistic Cannon 5 | . . 4 1 Launcher 2 | . 1 1 . Special Weapon . | . . . . Impact Weapon 1 | . . 1 . Slashing Weapon 1 | . . 1 . Piercing Weapon . | . . . . Special Melee Weapon . | . . . . Unidentified Prototypes 1 | . 1 . . Parts Lost 8 | . 1 7 . Power 1 | . 1 . . Propulsion 5 | . . 5 . Utility . | . . . . Weapon 2 | . . 2 . Highest Loss Streak 3 | . 1 3 . To Critical Strikes . | . . . . Average Slot Usage (%) 94 | . 97 92 85 Engine 13 | . 13 14 14 Treads 21 | . 28 17 . Wheel 2 | . . 4 14 Device 3 | . 4 2 . Storage 14 | . 14 14 14 Protection 9 | . 6 11 14 Energy Cannon 7 | . . 12 14 Ballistic Gun 7 | . 20 . . Ballistic Cannon 6 | . . 10 14 Launcher 3 | . 7 1 . Impact Weapon 1 | . . 2 . Peak Build Rating 17 | 6 12 17 12 Average Rating 11 | 4 10 12 12 On Entrance 7 | . 6 10 14 Naked Turns . | . . . . Heaviest Build 41 | 12 33 41 . Greatest Support 40 | 40 40 40 . Greatest Overweight (x) 11 | 2 . 11 . Average Overweight (x) . | . . . . Largest Inventory Capacity 15 | 8 15 15 15 Average Capacity 13 | 6 12 15 15 Most Carried 15 | 2 12 15 15 Average Carried 11 | 1 8 13 15 Final Capacity 15 | 8 15 15 15 Final Carried 15 | 2 12 15 15 Class Distribution -------------------- 100% | Mutant Dominant Class ---------------- Mutant | -10/Materials Mutant | -10/Subcaves Mutant | -8/Recycling Resources | -11 -10 -10 -8 ----------- Run | Yrd Mat Sub Rec Matter Collected 1056 | 258 365 433 . Remotely . | . . . . Salvage Created 801 | . 510 237 54 Parts 51 | . 31 15 5 Haulers Intercepted 2 | . 2 . . Recyclers Shooed . | . . . . Parts Field Recycled . | . . . . Retrieved Matter . | . . . . Parts Self-Destructed 7 | . . 7 . Prevented . | . . . . Kills | -11 -10 -10 -8 ------- Run | Yrd Mat Sub Rec Combat Hostiles Destroyed 22 | . 12 9 1 Melee 1 | . . 1 . Guns 6 | . 6 . . Cannons 8 | . . 7 1 AOE 7 | . 6 1 . Classes Destroyed 9 | . 7 2 . Worker 2 | . 2 . . Hauler 2 | . 2 . . Recycler 1 | . 1 . . Mechanic 1 | . 1 . . Watcher 3 | . 3 . . Swarmer 6 | . 6 . . Grunt 6 | . 6 . . Sentry 2 | . . 1 1 Subdweller 8 | . . 8 . Best Kill Streak 5 | . 5 2 1 Combat Bots Only 3 | . 3 2 1 Max Kills in Single Turn 3 | . 3 1 1 Gunslinging . | . . . . Exploded 2 | . 2 1 . Melee 1 | . . 1 . Uniques/NPCs Destroyed . | . . . . Combat | -11 -10 -10 -8 -------- Run | Yrd Mat Sub Rec Hostile Shots Fired 111 | . 41 61 9 Missed 32 | . 10 20 2 Damage Taken 1399 | . 369 926 104 Core 255 | . 78 165 12 Absorbed by Shields . | . . . . Redirected to Shielding 38 | . 4 32 2 Core Remaining (%) 100 | 100 . . . Volleys Fired 98 | . 53 42 3 Largest 2 | . 2 2 2 Hottest 119 | . 50 119 95 Shots Fired 182 | . 101 75 6 Gun 93 | . 93 . . Cannon 79 | . . 73 6 Launcher 10 | . 8 2 . Special . | . . . . Kinetic 142 | . 93 46 3 Thermal 32 | . . 29 3 Explosive 8 | . 8 . . Electromagnetic . | . . . . Robot Hit Streak 26 | . 14 26 11 Robot Miss Streak 5 | . 5 2 1 Penetration Max . | . . . . Secondary Targets . | . . . . Shots Hit Robots 115 | . 60 51 4 Core Hits 56 | . 39 15 2 Critical Kills . | . . . . Critical Parts Destroyed 1 | . 1 . . Critical Strikes 3 | . 1 2 . Destroy 1 | . 1 . . Blast 2 | . . 2 . Melee Attacks 10 | . . 10 . Impact 9 | . . 9 . Slashing 1 | . . 1 . Piercing . | . . . . Sneak Attacks . | . . . . Combat Hostiles . | . . . . Follow-up Attacks . | . . . . Damage Inflicted 2254 | . 896 1286 72 Guns 482 | . 482 . . Cannons 1093 | . . 1021 72 Explosions 504 | . 386 118 . Melee 140 | . . 140 . Ramming 35 | . 28 7 . Kinetic 1205 | . 482 705 18 Thermal 488 | . . 434 54 Explosive 386 | . 386 . . Electromagnetic . | . . . . Impact 140 | . . 140 . Slashing . | . . . . Piercing . | . . . . Highest Corruption . | . . . . Average Corruption . | . . . . Corruption Purged . | . . . . Corruption Blocked . | . . . . Overload Shots . | . . . . Overflow Damage 8 | . 8 . . Projectiles . | . . . . Explosions 8 | . 8 . . Melee . | . . . . Knockbacks 5 | . . 5 . Impact 2 | . . 2 . Kinetic 3 | . . 3 . Secondary . | . . . . Self-Inflicted Damage 19 | . 16 3 . Shots 1 | . 1 . . Rammed 3 | . 2 1 . Targets Rammed 6 | . 5 1 . Kicked . | . . . . Crushed 3 | . 3 . . Highest Temperature 150 | . 22 18 150 Average Temperature 15 | . 7 13 92 Received Heat Transfer 360 | . 168 129 63 Siege Activations . | . . . . Robots Corrupted . | . . . . Combat Hostiles . | . . . . Parts Fried . | . . . . Impact Corruptions . | . . . . Robots Melted . | . . . . Combat Hostiles . | . . . . Parts Melted 3 | . . 3 . Heat Transferred 777 | . . 666 111 Parts Sabotaged . | . . . . Parts Stolen . | . . . . Parts Stripped . | . . . . Power Chain Reactions . | . . . . Alert | -11 -10 -10 -8 ------- Run | Yrd Mat Sub Rec Peak Influence 428 | . 428 . 27 Initial 7 | . . . 7 Average 217 | . 234 . 11 Maximum Alert Level 2 | . 2 . . Low Security (%) 40 | 100 36 . 100 Level 1 46 | . 50 . . Level 2 12 | . 13 . . Level 3 . | . . . . Level 4 . | . . . . Level 5 . | . . . . High Security . | . . . . Max Security . | . . . . Squads Dispatched 1 | . 1 . . Investigation . | . . . . Extermination . | . . . . Reinforcement 1 | . 1 . . Assault . | . . . . Garrison . | . . . . Intercept . | . . . . Searches Triggered . | . . . . Construction Impeded . | . . . . Haulers Reinforced . | . . . . Active Scanning Responses . | . . . . Cargo Convoy Interrupts . | . . . . Stealth | -11 -10 -10 -8 --------- Run | Yrd Mat Sub Rec Distress Signals 3 | . 3 . . Communications Jammed . | . . . . Distress Signals . | . . . . Times Spotted 38 | . 23 13 2 Peak Tracking Total 3 | . 3 3 2 Tactical Retreats 2 | . 1 1 . Traps | -11 -10 -10 -8 ------- Run | Yrd Mat Sub Rec Traps Triggered . | . . . . Indirectly . | . . . . Trap Hack Attempts . | . . . . Triggered . | . . . . Disarmed . | . . . . Reprogrammed . | . . . . Reused 1 | . . 1 . Traps Extracted . | . . . . Installed 1 | . . 1 . Triggered 2 | . . 2 . Most Traps Carried 1 | . . 1 . Machines | -11 -10 -10 -8 ---------- Run | Yrd Mat Sub Rec Machines Disabled 3 | . 3 . . Max in Single Turn 2 | . 2 . . Machines Repaired . | . . . . Machines Dismantled . | . . . . Machines Sabotaged . | . . . . Overloaded Fab Kills . | . . . . Hacking | -11 -10 -10 -8 --------- Run | Yrd Mat Sub Rec Machines Accessed 6 | . 6 . . Terminals 6 | . 6 . . Fabricators . | . . . . Repair Stations . | . . . . Recycling Units . | . . . . Scanalyzers . | . . . . Garrison Access . | . . . . Total Hacks 18 | . 18 . . Successful 11 | . 11 . . Failed 7 | . 7 . . Catastrophic . | . . . . Database Lockouts . | . . . . Manual 14 | . 14 . . Terminals 18 | . 18 . . Fabricators . | . . . . Repair Stations . | . . . . Recycling Units . | . . . . Scanalyzers . | . . . . Garrison Access . | . . . . Terminal Hacks 5 | . 5 . . Robot Schematic 1 | . 1 . . Prototype ID Bank 3 | . 3 . . Hauler Manifests 1 | . 1 . . Fabricator Hacks . | . . . . Repair Station Hacks . | . . . . Recycling Unit Hacks . | . . . . Scanalyzer . | . . . . Garrison Access Hacks . | . . . . Unauthorized Hacks 6 | . 6 . . Terminals 6 | . 6 . . Botnet 1 | . 1 . . Skim 5 | . 5 . . Fabricators . | . . . . Repair Stations . | . . . . Recycling Units . | . . . . Scanalyzers . | . . . . Garrison Access . | . . . . Data Cores Recovered . | . . . . Used . | . . . . Hacking Detections 5 | . 5 . . Full Trace Events . | . . . . Feedback Events . | . . . . Feedback Blocked . | . . . . Robot Schematics Acquired 1 | . 1 . . Robots Built . | . . . . Authchips . | . . . . Time . | . . . . Total Robot Build Rating . | . . . . Part Schematics Acquired . | . . . . Parts Built . | . . . . Authchips . | . . . . Time . | . . . . Total Part Build Rating . | . . . . Parts Repaired . | . . . . Time . | . . . . Parts Recycled . | . . . . Recycled Matter . | . . . . Retrieved Matter . | . . . . Retrieved Components . | . . . . Parts Scanalyzed . | . . . . Part Schematics Acquired . | . . . . Parts Damaged . | . . . . Bothacking | -11 -10 -10 -8 ------------ Run | Yrd Mat Sub Rec Used RIF Installer . | . . . . Robots Hacked . | . . . . Non-combat . | . . . . Combat . | . . . . Robot Hacks Applied . | . . . . Relay Couplers Released . | . . . . Fabnet Peak Effective % . | . . . . Robots Rewired . | . . . . Allies Hacked . | . . . . Hacks Repelled . | . . . . Allies | -11 -10 -10 -8 -------- Run | Yrd Mat Sub Rec Total Allies . | . . . . Largest Group . | . . . . Highest-Rated Group . | . . . . Highest-Rated Ally . | . . . . Total Orders . | . . . . Ally Attacks . | . . . . Total Damage . | . . . . Kills . | . . . . Allies Corrupted . | . . . . Allies Melted . | . . . . Intel | -11 -10 -10 -8 ------- Run | Yrd Mat Sub Rec Robot Analysis Total . | . . . . Derelict Logs Recovered 1 | . . 1 . Drone Launches . | . . . . Drone Recoveries . | . . . . Exploration | -11 -10 -10 -8 ------------- Run | Yrd Mat Sub Rec Turns Passed 3529 | 89 1327 2103 10 Spaces Moved 1987 | 55 705 1227 . Core 20 | 18 . 2 . Treads 1449 | 37 705 707 . Legs . | . . . . Wheels 518 | . . 518 . Hover . | . . . . Flight . | . . . . Fastest Speed 50 | 50 160 120 . Average Speed 156 | 144 160 155 . Slowest Speed 600 | 160 160 600 . Overloaded Moves . | . . . . Propulsion Burnouts . | . . . . Robots Hopped . | . . . . Cave-ins Triggered . | . . . . Exploration Rate (%) 45 | 6 97 75 2 Regions Visited 3 Branch Regions 2 Pre-discovered Areas 1 | . . 1 . Known Exits Taken 2 | . 1 1 . Unknown Exits Taken 1 | 1 . . . Scrap Searched 5 | . . 5 . Spaces Dug 18 | . 16 2 . Terrain Destroyed 72 | . 44 28 . Melee 2 | . . 2 . Projectile 1 | . . 1 . AOE 69 | . 44 25 . Terrain Rammed . | . . . . Walls Destroyed . | . . . . Machines Disabled . | . . . . Actions | -11 -10 -10 -8 --------- Run | Yrd Mat Sub Rec Total 2219 | 62 817 1336 4 Wait 51 | . 34 17 . Move 1985 | 54 704 1227 . Hop . | . . . . Pick Up 24 | 2 8 14 . Fast Attach 11 | 6 4 1 . Attach 5 | . . 5 . Detach 2 | . 2 . . Swap 18 | . 4 13 1 Drop 10 | . 3 7 . Fire 98 | . 53 42 3 Melee 9 | . . 9 . Ram . | . . . . Kick . | . . . . Crush 5 | . 5 . . Escape Stasis . | . . . . Rewire . | . . . . Trap 1 | . . 1 . Miscellaneous . | . . . . Route ------- -11/Scrapyard -10/Materials (discovered 6 exits: *Mat x3 / *Min x2 / *Sub) -10/Subcaves (discovered 3 exits: [*Mat x2] / *Rec) -8/Recycling History --------- Turn | Location | Event 20 | -11/Scrapyard | Discovered new exit (range 16) 90 | -11/Scrapyard | Entered Materials 174 | -10/Materials | Discovered new exit (range 14) 315 | -10/Materials | Build established: Mutant 429 | -10/Materials | Discovered new exit (range 10) 481 | -10/Materials | Discovered new exit (range 7) 1050 | -10/Materials | Discovered new exit (range 8) 1136 | -10/Materials | Learned 4 Subcaves zone layouts 1167 | -10/Materials | Identified exit to Subcaves 1167 | -10/Materials | Identified exit to Materials 1167 | -10/Materials | Learned location of 1 exit from Materials 1198 | -10/Materials | Learned Storage trap positions 1211 | -10/Materials | Learned Storage security intel 1234 | -10/Materials | Identified exit to Mines 1417 | -10/Materials | Entered Subcaves 1418 | -10/Subcaves | Identified exit to Recycling 1422 | -10/Subcaves | Learned Materials interactive machine intel 1436 | -10/Subcaves | Shifting Twisted Machinery released Sub. Beam Cannon 1579 | -10/Subcaves | Shifting Twisted Machinery released Sub. Optics 1582 | -10/Subcaves | Shifting Twisted Machinery released Sub. Machine Gun 1693 | -10/Subcaves | Learned location of Zion (-7) 1693 | -10/Subcaves | Met a Zionite searching for "candidates" 2078 | -10/Subcaves | Discovered new exit (range 4) 2399 | -10/Subcaves | Shifting Twisted Machinery released Mak. Hammer 2399 | -10/Subcaves | Shifting Twisted Machinery released Piercing Trap 2642 | -10/Subcaves | Discovered new exit (range 5) 2718 | -10/Subcaves | Lost 3 parts (3n) 2807 | -10/Subcaves | Core integrity fell below 50% 2857 | -10/Subcaves | Lost 3 parts (1n2w) 3285 | -10/Subcaves | Core integrity fell below 20% 3520 | -10/Subcaves | Entered Recycling 3530 | -8/Recycling | Destroyed by Y-45 Defender with Beam Rifle Last Messages --------------- 03175_ Acquired Mak. Hammer. 03182_ Acquired Piercing Trap. 03274_ KJ-NKC(R) knocked back. 03280_ Sub. Monowheel destroyed. 03281_ KJ-NKC(R) destroyed. 03290_ RZ-MNY(R) destroyed. 03292_ Acquired 31 matter. 03298_ Subatomizers dissect the Sub. Monowheel. 03304_ Acquired Sub. Monowheel. 03308_ Acquired Lgt. Cannon. 03315_ Acquired 52 matter. 03318_ Acquired Sub. Monowheel. 03337_ Subatomizers dissect the Sub. Power Source. 03520_ Slammed into S-10 Pest. 03520_ Destabilizing: Core damaged (-10). LOCATION=RECYCLING GOAL=ESCAPE 03522_ Y-45 Defender springs to life. 03523_ Critical hit (Burn: +37). 03528_ Y-45 Defender destroyed. Map ----- +----------------------------------------------------+ | ????????????????????????????????? | | ????????????????????????????????? | | ????????????????????????????????? | | ????????????????????????????????? | | ????????????????????????????????? | | ????????????????????????????????? | | ????????????????????????????????? | | ????????????????????????????????? | | ????????????????????????????????? | | ????????????????????????????????? | | ????????????????????????????????? | | ????????????????????????????????? | | ????????????????????????????????? | | ????????????????????????????????? | | ????????????????????????????????? | | ????????????????????????????????? | | ????????????????????????????????? | | ????????????????????????????????? | | ????????????????????????????????? | | ????????????????????????????????? | | ????????????????????????????????? | | ????????????????????????????????? | | ?????????##??????#??????????????? | | ??????###T##[# ##===#?????????? | | ??????# !%* ????????? | | ??????# @ =! ????????? | | ??????# Y ????????? | | ??????#######T#### ##???????????? | | ????????????????????????????????? | | ????????????????????????????????? | | ????????????????????????????????? | | ????????????????????????????????? | | | | | | | | | | | | | | | | | | | | | | | | | | | | | | | | | | | | | +----------------------------------------------------+ Best States ------------- Heat Dissipation 39 Energy Generation 14 Energy Capacity 280 Matter Stores 300 Matter Capacity 300 Sight Range 21 Terrain Scan Density 10 Core Shielding 20 Evasion (%) 40 Recoil Reduction 2 Item Schematics ----------------- None Robot Schematics ------------------ M-13 Machinist | -10/Materials | Hacked Fabricated ------------ Nothing Alien Tech Used ----------------- None Achievements -------------- None Challenges ------------ None Game ------ Seed MolecularForceRecalibrator Manual? 0 Play Time 00:12:24 Cumulative 547.5 hours Start 2024.12.12 @ 08:06:06 End 2024.12.12 @ 08:18:23 Sessions 1 Manual Loads 0 Difficulty Rogue Special Mode None Game No. 314 Rogue 314 Adventurer 0 Explorer 0 Win Type - Total 43 Types 29/3/5/1/1/0/2/1/1 Lore% 84 Gallery% 86 Achievement% 86 Wizard Run 0 Options --------- Layout 0 ASCII 0 Keyboard 1 Movement Numpad Keybinds 0 Fullscreen 2 Font 18/SmallcapsGlow Map View 76x50 Zoom Use 0% Tactical HUD 1 Map Filters NONE Filters NONE Steam 1 RUN: a4ef570e-66c5-469a-841f-653229085914